Cogmind - Beta 10.2 @@@ ROGUE MODE // 2021.05.26 @ 20:08:39 Player: Vagkalis Result: Destroyed by DAS Turret with DAS Cannon Performance ------------- Evolutions (1) 500 Regions Visited (5) 1000 Robots Destroyed (9) 45 Value Destroyed (376) 376 Prototype IDs (2) 40 Alien Tech Used (0) 0 Bonus (-765) -765 TOTAL SCORE: 1196 Bonus ------- Friendly Fire -765 Cogmind --------- Core Integrity 0/400 Matter 57/350 Energy 64/280 System Corruption 0% Temperature Cool (0) Movement Walking (190) Ox2 Location -9/Exiles Parts ------- > --- POWER (1) -------- Cooled Ion Engine > --- PROPULSION (2) --- Titanium Leg > --- UTILITY (4) ------ Improved Heat Sink Large Storage Unit Large Storage Unit Small Matter Pod > --- WEAPON (2) ------- Improved Assault Rifle > --- INVENTORY (16) --- Experimental Sensor Array Improved Weapon Shielding Medium Armor Plating Reactive Plating Autogun Autogun Autogun Flak Cannon Grenade Launcher Missile Launcher Peak State ------------ > --- POWER ------------ Cooled Ion Engine > --- PROPULSION ------- Light Treads Wheel > --- UTILITY ---------- Improved Heat Sink Large Storage Unit Large Storage Unit Improved Weapon Shielding > --- WEAPON ----------- Autogun Autogun > --- INVENTORY -------- Light Nuclear Core Light Treads Titanium Leg Medium Storage Unit Small Matter Pod Experimental Sensor Array Improved Weapon Shielding Medium Armor Plating Reactive Plating Autogun Autogun Minigun Flak Cannon Grenade Launcher Missile Launcher Heavy Flail [Rating: 21] Favorites ----------- Power Light Ion Engine Engine Light Ion Engine Propulsion Light Treads Treads Light Treads Leg Titanium Leg Wheel Wheel Utility Large Storage Unit Device Improved Heat Sink Storage Large Storage Unit Protection Improved Weapon Shielding Weapon Autogun Energy Gun EM Pulse Gun Ballistic Gun Autogun Launcher Missile Launcher Build | -11 -10 -10 -9 -9 -9 ------- Run | Scr Mat Min Mat Min Exi Slots Evolved 2 | . . . 2 . . Power . | . . . . . . Propulsion . | . . . . . . Utility 2 | . . . 2 . . Weapon . | . . . . . . Parts Attached 35 | 8 5 4 7 . 11 Power 4 | 1 . 1 1 . 1 Engine 4 | 1 . 1 1 . 1 Core . | . . . . . . Reactor . | . . . . . . Propulsion 10 | 3 . 2 2 . 3 Treads 7 | 2 . 1 2 . 2 Leg 1 | . . . . . 1 Wheel 2 | 1 . 1 . . . Hover . | . . . . . . Flight . | . . . . . . Utility 8 | 1 3 . 2 . 2 Device 1 | . . . 1 . . Storage 5 | 1 3 . . . 1 Processor . | . . . . . . Hackware . | . . . . . . Protection 2 | . . . 1 . 1 Artifact . | . . . . . . Weapon 13 | 3 2 1 2 . 5 Energy Gun 2 | 2 . . . . . Energy Cannon . | . . . . . . Ballistic Gun 9 | 1 2 1 2 . 3 Ballistic Cannon . | . . . . . . Launcher 2 | . . . . . 2 Special Weapon . | . . . . . . Impact Weapon . | . . . . . . Slashing Weapon . | . . . . . . Piercing Weapon . | . . . . . . Special Melee Weapon . | . . . . . . Unidentified Prototypes 2 | . . . 2 . . Parts Lost 9 | . . 1 . . 8 Power 1 | . . . . . 1 Propulsion 5 | . . 1 . . 4 Utility 1 | . . . . . 1 Weapon 2 | . . . . . 2 Highest Loss Streak 6 | . . 1 . . 6 Average Slot Usage (%) 96 | . 99 93 97 100 94 Engine 11 | . 14 14 10 11 7 Treads 12 | . 14 14 11 11 11 Wheel 10 | . 14 7 11 11 9 Device 5 | . . . 9 11 11 Storage 24 | . 27 28 22 22 24 Protection 5 | . . . 9 11 8 Energy Gun 1 | . 11 . . . . Ballistic Gun 21 | . 16 28 22 22 16 Naked Turns . | . . . . . . Heaviest Build 49 | 11 40 41 49 49 49 Greatest Support 40 | 40 20 40 20 20 20 Greatest Overweight (x) 4 | . 2 4 4 2 2 Average Overweight (x) 1 | . 1 2 2 2 1 Largest Inventory Capacity 16 | 6 16 16 16 16 16 Average Capacity 15 | 5 13 16 16 16 16 Most Carried 16 | 6 12 16 16 16 16 Average Carried 13 | 3 8 14 15 16 15 Final Capacity 16 | 6 16 16 16 16 16 Final Carried 16 | 4 11 16 16 16 10 Class Distribution -------------------- 100% | Mutant Dominant Class ---------------- Mutant | -10/Materials Mutant | -10/Mines Mutant | -9/Materials Mutant | -9/Mines Mutant | -9/Exiles Resources | -11 -10 -10 -9 -9 -9 ----------- Run | Scr Mat Min Mat Min Exi Matter Collected 790 | 234 110 145 231 15 55 Remotely . | . . . . . . Salvage Created 427 | . 50 167 178 . 32 Parts 17 | . 2 6 9 . . Haulers Intercepted . | . . . . . . Recyclers Shooed 1 | . . . 1 . . Parts Field Recycled . | . . . . . . Retrieved Matter . | . . . . . . Parts Self-Destructed . | . . . . . . Prevented . | . . . . . . Kills | -11 -10 -10 -9 -9 -9 ------- Run | Scr Mat Min Mat Min Exi Combat Hostiles Destroyed 10 | . 1 4 4 . 1 Guns 10 | . 1 4 4 . 1 Classes Destroyed 3 | . 1 . 1 . 1 Grunt 8 | . 1 4 3 . . Sentry 1 | . . . 1 . . Assembled 6 | . . . . . 6 Best Kill Streak 3 | . 1 2 3 . 1 Combat Bots Only 3 | . 1 2 3 . 1 Max Kills in Single Turn 5 | . 1 1 1 . 5 Gunslinging . | . . . . . . Exploded . | . . . . . . Melee . | . . . . . . Uniques/NPCs Destroyed . | . . . . . . Combat | -11 -10 -10 -9 -9 -9 -------- Run | Scr Mat Min Mat Min Exi Damage Taken 2227 | . 134 349 300 15 1429 Core 588 | . 30 103 82 . 373 Absorbed by Shields . | . . . . . . Core Remaining (%) 73 | 100 . 46 . . . Volleys Fired 77 | . 8 20 15 . 34 Largest 2 | . 2 2 2 . 2 Hottest 66 | . 63 43 46 . 66 Shots Fired 151 | . 16 40 30 . 65 Gun 148 | . 16 40 30 . 62 Cannon . | . . . . . . Launcher 3 | . . . . . 3 Special . | . . . . . . Kinetic 140 | . 8 40 30 . 62 Thermal . | . . . . . . Explosive 3 | . . . . . 3 Electromagnetic 8 | . 8 . . . . Robot Hit Streak 10 | . 4 7 10 . 8 Robot Miss Streak 2 | . 2 2 2 . 2 Penetration Max . | . . . . . . Secondary Targets 2 | . . . 1 . 1 Max Gunslinging Chain 1 | . . . 1 . 1 Shots Hit Robots 108 | . 9 29 23 . 47 Core Hits 37 | . 4 10 8 . 15 Critical Hits . | . . . . . . Critical Kills . | . . . . . . Critical Parts Destroyed . | . . . . . . Melee Attacks . | . . . . . . Impact . | . . . . . . Slashing . | . . . . . . Piercing . | . . . . . . Sneak Attacks . | . . . . . . Combat Hostiles . | . . . . . . Follow-up Attacks . | . . . . . . Damage Inflicted 1859 | . 129 318 406 . 1006 Guns 1544 | . 129 318 406 . 691 Cannons . | . . . . . . Explosions 315 | . . . . . 315 Melee . | . . . . . . Ramming . | . . . . . . Kinetic 1479 | . 64 318 406 . 691 Thermal . | . . . . . . Explosive 315 | . . . . . 315 Electromagnetic 65 | . 65 . . . . Impact . | . . . . . . Slashing . | . . . . . . Piercing . | . . . . . . Highest Corruption . | . . . . . . Average Corruption . | . . . . . . Corruption Purged . | . . . . . . Overload Shots . | . . . . . . Overflow Damage . | . . . . . . Projectiles . | . . . . . . Explosions . | . . . . . . Melee . | . . . . . . Knockbacks . | . . . . . . Impact . | . . . . . . Kinetic . | . . . . . . Secondary . | . . . . . . Self-Inflicted Damage . | . . . . . . Shots . | . . . . . . Rammed . | . . . . . . Targets Rammed . | . . . . . . Kicked . | . . . . . . Crushed . | . . . . . . Highest Temperature 106 | . 106 47 . . . Average Temperature 29 | . 63 15 . . . Received Heat Transfer 469 | . 75 198 156 . 40 Siege Activations . | . . . . . . Robots Corrupted . | . . . . . . Combat Hostiles . | . . . . . . Parts Fried . | . . . . . . Impact Corruptions . | . . . . . . Robots Melted . | . . . . . . Combat Hostiles . | . . . . . . Parts Melted . | . . . . . . Heat Transferred . | . . . . . . Parts Sabotaged . | . . . . . . Parts Stolen . | . . . . . . Parts Stripped . | . . . . . . Power Chain Reactions . | . . . . . . Missiles Intercepted . | . . . . . . Alert | -11 -10 -10 -9 -9 -9 ------- Run | Scr Mat Min Mat Min Exi Peak Influence 145 | . 73 95 145 8 . Initial 8 | . . 5 . 8 . Average 38 | . 34 42 56 8 . Maximum Alert Level . | . . . . . . Low Security (%) 100 | 100 100 100 100 100 . Level 1 . | . . . . . . Level 2 . | . . . . . . Level 3 . | . . . . . . Level 4 . | . . . . . . Level 5 . | . . . . . . High Security . | . . . . . . Max Security . | . . . . . . Squads Dispatched 1 | . 1 . . . . Investigation 1 | . 1 . . . . Extermination . | . . . . . . Reinforcement . | . . . . . . Assault . | . . . . . . Garrison . | . . . . . . Intercept . | . . . . . . Construction Impeded . | . . . . . . Haulers Reinforced . | . . . . . . Stealth | -11 -10 -10 -9 -9 -9 --------- Run | Scr Mat Min Mat Min Exi Distress Signals 1 | . 1 . . . . Communications Jammed . | . . . . . . Distress Signals . | . . . . . . Times Spotted 32 | . 10 6 10 3 3 Peak Tracking Total 5 | . 5 2 4 3 4 Tactical Retreats 2 | . . . 1 . 1 Traps | -11 -10 -10 -9 -9 -9 ------- Run | Scr Mat Min Mat Min Exi Traps Triggered 2 | . 1 . 1 . . Indirectly . | . . . . . . Trap Hack Attempts . | . . . . . . Triggered . | . . . . . . Disarmed . | . . . . . . Reprogrammed . | . . . . . . Reused . | . . . . . . Traps Extracted . | . . . . . . Installed . | . . . . . . Triggered . | . . . . . . Machines | -11 -10 -10 -9 -9 -9 ---------- Run | Scr Mat Min Mat Min Exi Machines Disabled 5 | . 2 . . . 3 Max in Single Turn 2 | . 1 . . . 2 Machines Sabotaged . | . . . . . . Garrisons Compromised . | . . . . . . Overloaded Fab Kills . | . . . . . . Fab Network Shutdowns . | . . . . . . Hacking | -11 -10 -10 -9 -9 -9 --------- Run | Scr Mat Min Mat Min Exi Machines Accessed 8 | . 3 1 4 . . Terminals 7 | . 3 . 4 . . Fabricators . | . . . . . . Repair Stations . | . . . . . . Recycling Units . | . . . . . . Scanalyzers . | . . . . . . Garrison Access . | . . . . . . Total Hacks 12 | . 5 1 6 . . Successful 4 | . 2 1 1 . . Failed 8 | . 3 . 5 . . Catastrophic 4 | . . . 4 . . Database Lockouts . | . . . . . . Manual 7 | . 1 . 6 . . Terminals 11 | . 5 . 6 . . Fabricators . | . . . . . . Repair Stations . | . . . . . . Recycling Units . | . . . . . . Scanalyzers . | . . . . . . Garrison Access . | . . . . . . Terminal Hacks 4 | . 2 1 1 . . Open Door 1 | . . 1 . . . Branch Access Points 2 | . 1 . 1 . . Alert Level 1 | . 1 . . . . Fabricator Hacks . | . . . . . . Repair Station Hacks . | . . . . . . Recycling Unit Hacks . | . . . . . . Scanalyzer . | . . . . . . Garrison Access Hacks . | . . . . . . Unauthorized Hacks . | . . . . . . Terminals . | . . . . . . Fabricators . | . . . . . . Repair Stations . | . . . . . . Recycling Units . | . . . . . . Scanalyzers . | . . . . . . Garrison Access . | . . . . . . Data Cores Recovered . | . . . . . . Used . | . . . . . . Hacking Detections 5 | . 1 . 4 . . Full Trace Events . | . . . . . . Feedback Events . | . . . . . . Feedback Blocked . | . . . . . . Robot Schematics Acquired . | . . . . . . Robots Built . | . . . . . . Matter . | . . . . . . Time . | . . . . . . Total Robot Build Rating . | . . . . . . Part Schematics Acquired . | . . . . . . Parts Built . | . . . . . . Matter . | . . . . . . Time . | . . . . . . Total Part Build Rating . | . . . . . . Parts Repaired . | . . . . . . Time . | . . . . . . Parts Recycled . | . . . . . . Recycled Matter . | . . . . . . Retrieved Matter . | . . . . . . Retrieved Components . | . . . . . . Parts Scanalyzed . | . . . . . . Part Schematics Acquired . | . . . . . . Parts Damaged . | . . . . . . Bothacking | -11 -10 -10 -9 -9 -9 ------------ Run | Scr Mat Min Mat Min Exi Used RIF Installer . | . . . . . . Robots Hacked . | . . . . . . Non-combat . | . . . . . . Combat . | . . . . . . Robot Hacks Applied . | . . . . . . Relay Couplers Released . | . . . . . . Robots Rewired . | . . . . . . Allies Hacked . | . . . . . . Hacks Repelled . | . . . . . . Allies | -11 -10 -10 -9 -9 -9 -------- Run | Scr Mat Min Mat Min Exi Total Allies 1 | . . . . 1 . Largest Group 1 | . . . . 1 . Highest-Rated Group 31 | . . . . 31 . Highest-Rated Ally 31 | . . . . 31 . Total Orders . | . . . . . . Ally Attacks . | . . . . . . Total Damage . | . . . . . . Kills . | . . . . . . Allies Corrupted . | . . . . . . Allies Melted . | . . . . . . Intel | -11 -10 -10 -9 -9 -9 ------- Run | Scr Mat Min Mat Min Exi Robot Analysis Total . | . . . . . . Derelict Logs Recovered 1 | . . 1 . . . Drone Launches . | . . . . . . Drone Recoveries . | . . . . . . Exploration | -11 -10 -10 -9 -9 -9 ------------- Run | Scr Mat Min Mat Min Exi Turns Passed 2535 | 78 423 660 610 288 476 Spaces Moved 1250 | 60 264 364 305 145 112 Core 11 | 11 . . . . . Treads 758 | 10 68 229 194 145 112 Legs . | . . . . . . Wheels 481 | 39 196 135 111 . . Hover . | . . . . . . Flight . | . . . . . . Fastest Speed 50 | 50 100 110 120 200 180 Average Speed 160 | 100 128 157 170 200 193 Slowest Speed 200 | 160 180 180 200 200 200 Overloaded Moves . | . . . . . . Propulsion Burnouts . | . . . . . . Robots Hopped . | . . . . . . Cave-ins Triggered . | . . . . . . Exploration Rate (%) 33 | 4 40 87 24 20 28 Regions Visited 5 Branch Regions 3 Pre-discovered Areas 2 | . . 1 . 1 . Known Exits Taken 2 | . 1 . 1 . . Unknown Exits Taken 3 | 1 . 1 . 1 . Scrap Searched 1 | . . 1 . . . Spaces Dug . | . . . . . . Terrain Destroyed 21 | . . . . . 21 Melee . | . . . . . . Projectile . | . . . . . . AOE 21 | . . . . . 21 Terrain Rammed . | . . . . . . Walls Destroyed . | . . . . . . Machines Disabled . | . . . . . . Actions | -11 -10 -10 -9 -9 -9 --------- Run | Scr Mat Min Mat Min Exi Total 1667 | 76 336 421 373 144 317 Wait 235 | . 37 16 30 . 152 Move 1245 | 59 263 363 304 144 112 Hop . | . . . . . . Pick Up 48 | 9 15 12 8 . 4 Fast Attach 4 | 1 1 . 2 . . Attach 16 | 5 1 2 2 . 6 Detach . | . . . . . . Swap 15 | 2 3 2 3 . 5 Drop 27 | . 8 6 9 . 4 Fire 77 | . 8 20 15 . 34 Melee . | . . . . . . Ram . | . . . . . . Kick . | . . . . . . Crush . | . . . . . . Escape Stasis . | . . . . . . Rewire . | . . . . . . Trap . | . . . . . . Miscellaneous . | . . . . . . Route ------- -11/Scrapyard -10/Materials -10/Mines -9/Materials (discovered 3 exits: *Min x2 / Sto) -9/Mines (discovered 3 exits: [*Mat] / [*Exi] / [*Zio]) -9/Exiles (discovered 1 exit: [*Min]) History --------- Turn | Location | Event 22 | -11/Scrapyard | Discovered new exit (range 16) 79 | -11/Scrapyard | Entered Materials 189 | -10/Materials | Identified exit to Mines 316 | -10/Materials | Build established: Mutant 502 | -10/Materials | Entered Mines 585 | -10/Mines | Found a damaged Exp. Sensor Array with a note attached 589 | -10/Mines | Found Prototype Device 704 | -10/Mines | Core integrity fell below 50% 978 | -10/Mines | Met a Derelict who couldn't figure out how to use a Trap Extractor 1156 | -10/Mines | Discovered new exit (range 6) 1162 | -10/Mines | Entered Materials 1162 | -9/Materials | Evolved 2 slots: Utility x2 1441 | -9/Materials | Discovered new exit (range 14) 1724 | -9/Materials | Identified exit to Mines 1724 | -9/Materials | Identified exit to Storage 1772 | -9/Materials | Entered Mines 1773 | -9/Mines | A Derelict revealed a hidden shortcut to a safe place 1892 | -9/Mines | Discovered new exit (range 12) 1911 | -9/Mines | Escorted by a lone wolf Derelict 1931 | -9/Mines | Learned location of Storage (-9) 2035 | -9/Mines | Assembled infested the area 2050 | -9/Mines | Discovered new exit (range 5) 2060 | -9/Mines | Entered Exiles 2060 | -9/Exiles | Accompanied by 1 ally 2101 | -9/Exiles | Discovered new exit (range 15) 2219 | -9/Exiles | Met 8R-AWN 2270 | -9/Exiles | Met EX-HEX 2376 | -9/Exiles | Attacked by the Exiles 2442 | -9/Exiles | Core integrity fell below 50% 2481 | -9/Exiles | Lost 6 parts (1p3n1u1w) 2531 | -9/Exiles | Core integrity fell below 20% 2536 | -9/Exiles | Destroyed by DAS Turret with DAS Cannon Last Messages --------------- Penetrated by HV Slug. Critical hit. Minigun destroyed. HV Slug penetrates Machine. Penetrated by HV Slug. HV Slug penetrates Machine. Penetrated by HV Slug. HV Slug penetrates Machine. Machine disabled. Penetrated by HV Slug. HV Slug penetrates Machine. HV Slug penetrates Wall. Penetrated by HV Slug. HV Slug penetrates Machine. Machine disabled. Penetrated by HV Slug. Acquired 41 matter. Lgt. Treads destroyed. HV Slug penetrates Machine. Penetrated by HV Slug. Map ----- +----------------------------------------------------+ | ?????????????????????????????????????????????????? | | ?????????????????????????????????????????????????? | | ?????????????????????????????????????????????????? | | ?????????????????????????????????????????????????? | | ?????????????????????????????????????????????????? | | ?????????????????????????????????????????????????? | | ?????????????????????????????????????????????????? | | ?????????????????????????????????????????????????? | | ?????????????????????????????????????????????????? | | ????????????????????????????????????????? ???????? | | ?????????????????????????????????????????" "?????? | | ???????????????????????????????????????? "????? | | ??????????????????????????????????? ""??? | | ?????????????????????????????????? "?? | | ????????????????????????????????? "#? | | ???????????????????????????????? "# | | ???????????????????????????????? " | | ????????????????????????????????? | | ???????????????????????????????""" | | ???????????????????????????????#""" | | ???????????????????????????????#"""" | | ?????????? ??????????????????##" | | ?????????? ????####???####"" " | | ????????? ##aaa####"" | | ????????? * "" | | ????????? @ | | ????????? | | ????????? | | ?????????? " "" | | ?????????? ""## ##" | | ??????????? ""##?# ###### "" | | ??????????? """"#???# #????### " # # # # | | ??????????? """????# #??????####### ### | | ???????????? ???????! ????????????# # #?? | | ???????????? ?? "????????" ????????????#### ##?? | | ????????????????????????#" ?????????????? ##??? | | ?????????????????????????!!""!?????????????##????? | | ?????????????????????????######??????????????????? | | ?????????????????????????????????????????????????? | | ?????????????????????????????????????????????????? | | ?????????????????????????????????????????????????? | | ?????????????????????????????????????????????????? | | ?????????????????????????????????????????????????? | | ?????????????????????????????????????????????????? | | ?????????????????????????????????????????????????? | | ?????????????????????????????????????????????????? | | ?????????????????????????????????????????????????? | | ?????????????????????????????????????????????????? | | ?????????????????????????????????????????????????? | | ?????????????????????????????????????????????????? | +----------------------------------------------------+ Best States ------------- Heat Dissipation 42 Energy Generation 14 Energy Capacity 280 Matter Stores 300 Matter Capacity 350 Sight Range 16 Terrain Scan Density 10 Armor Coverage 225 Weapon Shielding 66 Evasion (%) 50 Recoil Reduction 2 Item Schematics ----------------- None Robot Schematics ------------------ None Fabricated ------------ Nothing Alien Tech Used ----------------- None Achievements -------------- None Challenges ------------ None Game ------ Seed BurstAlphaTendrils Manual? 0 Play Time 00:28:19 Cumulative 52.7 hours Start 2021.05.26 @ 10:50:41 End 2021.05.26 @ 20:08:39 Sessions 1 Manual Loads 0 Difficulty Rogue Special Mode None Game No. 76 Rogue 76 Adventurer 0 Explorer 0 Win Type - Total 1 Types 1/0/0/0/0/0/0/0/0 Lore% 51 Gallery% 51 Achievement% 39 Wizard Run 0 Options --------- ASCII 0 Keyboard 0 Movement Mouse Keybinds 0 Fullscreen 1 Font 14/Dina Map View 72x54 Tactical HUD 0 Map Filters NONE Filters NONE Steam 1 RUN: fe209e9c-9052-43f0-a2b9-b258ae101251